fUSD/lending_fUSD_20260107
["ID","MTS","AMOUNT","RATE_DAILY","PERIOD"]
[400707964,1767786223208,500.0,0.00016237,2]
[400707965,1767786223444,500.0,0.00016237,2]
[400707966,1767786223678,276.05434809,0.00016237,2]
[400707967,1767786359750,1000.0,0.00032877,120]
[400707969,1767786420430,1000.0,0.00032877,120]
[400707970,1767786443346,1000.0,0.00032877,120]
[400707971,1767786462021,-642.31,0.00016363,2]
[400707972,1767786462045,-1000.0,0.00016413,2]
[400707973,1767786462071,-202.31324064,0.00016447,2]
[400707974,1767786462095,-588.8701266,0.00016447,2]
[400707975,1767786462124,-588.8701266,0.00016447,2]
[400707976,1767786462150,-588.8701266,0.00016447,2]
[400707977,1767786462175,-588.8701266,0.00016447,2]
[400707978,1767786462200,-588.8701266,0.00016447,2]
[400707979,1767786462226,-588.8701266,0.00016447,2]
[400707980,1767786462250,-588.8701266,0.00016447,2]
[400707981,1767786462273,-588.8701266,0.00016447,2]
[400707982,1767786462297,-588.8701266,0.00016447,2]
[400707983,1767786462321,-588.8701266,0.00016447,2]
[400707984,1767786462345,-588.8701266,0.00016447,2]
[400707985,1767786462370,-588.8701266,0.00016447,2]
[400707986,1767786462394,-588.8701266,0.00016447,2]
[400707987,1767786462418,-588.8701266,0.00016447,2]
[400707988,1767786462441,-588.8701266,0.00016447,2]
[400707989,1767786462464,-588.8701266,0.00016447,2]
[400707990,1767786462491,-588.8701266,0.00016447,2]
[400707991,1767786462516,-588.8701266,0.00016447,2]
[400707992,1767786462543,-588.8701266,0.00016447,2]
[400707993,1767786462572,-588.8701266,0.00016447,2]
[400707994,1767786462597,-588.8701266,0.00016447,2]
[400707995,1767786462622,-588.8701266,0.00016447,2]
[400707996,1767786462646,-588.8701266,0.00016447,2]
[400707997,1767786462671,-588.8701266,0.00016447,2]
[400707998,1767786462696,-588.8701266,0.00016447,2]
[400707999,1767786462722,-588.8701266,0.00016447,2]
[400708000,1767786462748,-588.8701266,0.00016447,2]
[400708001,1767786462772,-588.8701266,0.00016447,2]
[400708002,1767786462799,-588.8701266,0.00016447,2]
[400708003,1767786462827,-588.8701266,0.00016447,2]
[400708004,1767786462853,-588.8701266,0.00016447,2]
[400708005,1767786462879,-588.8701266,0.00016447,2]
[400708006,1767786462904,-588.8701266,0.00016447,2]
[400708007,1767786462930,-588.8701266,0.00016447,2]
[400708008,1767786462956,-588.8701266,0.00016447,2]
[400708009,1767786462980,-588.8701266,0.00016447,2]
[400708010,1767786463007,-588.8701266,0.00016447,2]
[400708011,1767786463032,-588.8701266,0.00016447,2]
[400708012,1767786463057,-588.8701266,0.00016447,2]
[400708013,1767786463083,-588.8701266,0.00016447,2]
[400708014,1767786463107,-588.8701266,0.00016447,2]
[400708015,1767786463133,-588.8701266,0.00016447,2]
[400708016,1767786463157,-588.8701266,0.00016447,2]
[400708017,1767786463182,-588.8701266,0.00016447,2]
[400708018,1767786463208,-588.8701266,0.00016447,2]
[400708019,1767786463233,-588.8701266,0.00016447,2]
[400708020,1767786463257,-588.8701266,0.00016447,2]
[400708021,1767786463291,-588.8701266,0.00016447,2]
[400708022,1767786463320,-588.8701266,0.00016447,2]
[400708023,1767786463346,-588.8701266,0.00016447,2]
[400708024,1767786463371,-588.8701266,0.00016447,2]
[400708025,1767786463396,-588.8701266,0.00016447,2]
[400708026,1767786463421,-588.8701266,0.00016447,2]
[400708027,1767786463448,-588.8701266,0.00016447,2]
[400708028,1767786463474,-588.8701266,0.00016447,2]
[400708029,1767786463500,-588.8701266,0.00016447,2]
[400708030,1767786463526,-588.8701266,0.00016447,2]
[400708031,1767786463551,-588.8701266,0.00016447,2]
[400708032,1767786463577,-588.8701266,0.00016447,2]
[400708033,1767786463602,-588.8701266,0.00016447,2]
[400708034,1767786463626,-588.8701266,0.00016447,2]
[400708035,1767786463652,-588.8701266,0.00016447,2]
[400708036,1767786463677,-588.8701266,0.00016447,2]
[400708037,1767786463703,-1091.92372392,0.00016447,2]
[400708038,1767786463734,-1091.92372392,0.00016447,2]
[400708039,1767786463761,-1091.92372392,0.00016447,2]
[400708040,1767786463786,-1091.92372392,0.00016447,2]
[400708041,1767786463812,-1091.92372392,0.00016447,2]
[400708042,1767786463838,-1091.92372392,0.00016447,2]
[400708043,1767786463864,-1091.92372392,0.00016447,2]
[400708044,1767786463890,-1091.92372392,0.00016447,2]
[400708045,1767786463915,-1091.92372392,0.00016447,2]
[400708046,1767786463941,-1091.92372392,0.00016447,2]
[400708047,1767786463971,-1091.92372392,0.00016447,2]
[400708048,1767786463997,-1091.92372392,0.00016447,2]
[400708049,1767786464023,-1091.92372392,0.00016447,2]
[400708050,1767786464048,-1091.92372392,0.00016447,2]
[400708051,1767786464073,-1091.92372392,0.00016447,2]
[400708052,1767786464099,-1091.92372392,0.00016447,2]
[400708053,1767786464127,-1091.92372392,0.00016447,2]
[400708054,1767786464155,-1091.92372392,0.00016447,2]
[400708055,1767786464183,-1091.92372392,0.00016447,2]
[400708056,1767786464211,-1091.92372392,0.00016447,2]
[400708057,1767786464237,-1091.92372392,0.00016447,2]
[400708058,1767786464263,-1091.92372392,0.00016447,2]
[400708059,1767786464289,-1091.92372392,0.00016447,2]
[400708060,1767786464315,-1091.92372392,0.00016447,2]
[400708061,1767786464339,-1091.92372392,0.00016447,2]
[400708062,1767786464369,-1091.92372392,0.00016447,2]
[400708063,1767786464396,-1091.92372392,0.00016447,2]
[400708064,1767786464421,-500.0,0.00016447,2]
[400708065,1767786464446,-195.0,0.00016447,2]
[400708066,1767786464470,-193.0,0.00016448,2]
[400708067,1767786464494,-250.0,0.00016448,2]
[400708068,1767786464518,-756.7617919,0.00016448,2]
[400708069,1767786464542,-146539.7175315,0.00016448,2]
[400708070,1767786464565,-3230.7228333,0.00016448,2]
[400708071,1767786464590,-16961.71629956,0.00016673,2]
[400708072,1767786464614,-354.53606156,0.00016684,2]
[400708073,1767786464637,-500.0,0.00016721,2]
[400708074,1767786464661,-1852.42,0.0001675,2]
[400708075,1767786464686,-1200.0,0.00016773,2]
[400708076,1767786464709,-300.0,0.00016773,2]
[400708077,1767786464731,-300.0,0.00016773,2]
[400708078,1767786464753,-301.0,0.00016774,10]
[400708079,1767786464778,-32418.77,0.00016774,2]
[400708080,1767786464801,-1969.66451728,0.00016783,2]
[400708081,1767786464825,-600.0,0.00016793,2]
[400708082,1767786464850,-19485.95147217,0.00016811,2]
[400708083,1767786464874,-332.94,0.00016825,2]
[400708084,1767786464897,-506.11672707,0.00016995,2]
[400708085,1767786464921,-250.0,0.00017,2]
[400708086,1767786483131,900.0,0.00032877,120]
[400708087,1767786564382,531.4,0.00025744,120]
[400708090,1767786631871,-439.31811681,0.00016348,2]
[400708106,1767786632614,-96349.19598195,0.00016348,2]
[400708152,1767786638596,-365.669547,0.00016347,2]
[400708154,1767786638606,-237.88319947,0.00016347,2]
[400708156,1767786638616,-500.0,0.00016347,2]
[400708158,1767786638626,-441.68853773,0.00016347,2]
[400708160,1767786638636,-500.0,0.00016347,2]
[400708162,1767786638646,-196.25897375,0.00016347,2]
[400708165,1767786638657,-500.0,0.00016347,2]
[400708167,1767786638667,-500.0,0.00016347,2]
[400708169,1767786638677,-528539.94145689,0.00016348,2]
[400708171,1767786638689,-374671.54444435,0.00016348,2]
[400708173,1767786638698,-500.0,0.00016438,2]
[400708175,1767786638707,-500.0,0.00016438,2]
[400708176,1767786638716,-500.0,0.00016438,2]
[400708178,1767786638726,-500.0,0.00016438,2]
[400708180,1767786638735,-500.0,0.00016438,2]
[400708182,1767786638745,-500.0,0.00016438,2]
[400708184,1767786638755,-500.0,0.00016438,2]
[400708186,1767786638764,-500.0,0.00016438,2]
[400708188,1767786638774,-500.0,0.00016438,2]
[400708190,1767786638783,-500.0,0.00016438,2]
[400708192,1767786638793,-500.0,0.00016438,2]
[400708194,1767786638803,-188.05896623,0.00016438,2]
[400708196,1767786638812,-500.0,0.00016438,2]
[400708198,1767786638821,-500.0,0.00016438,2]
[400708200,1767786638831,-500.0,0.00016438,2]
[400708202,1767786638840,-236.35737438,0.00016995,2]
[400708204,1767786638850,-1000.0,0.00017029,2]
[400708206,1767786638859,-300.0,0.00017093,2]
[400708208,1767786638869,-1200.0,0.00017093,2]
[400708210,1767786638878,-33030.46,0.00017094,2]
[400708212,1767786638887,-531.4,0.00017163,2]
[400708214,1767786638897,-166.66,0.00017234,2]
[400708216,1767786638906,-236.35737436,0.00017245,2]
[400708218,1767786638916,-2448.47,0.00017336,2]
[400708220,1767786638926,-151.0,0.00017457,2]
[400708222,1767786638935,-151.0,0.00017485,2]
[400708224,1767786638945,-151.0,0.00017487,2]
[400708226,1767786638954,-151.0,0.00017487,2]
[400708228,1767786638964,-151.0,0.00017491,2]
[400708230,1767786638973,-151.0,0.00017491,2]
[400708232,1767786638983,-236.35737436,0.00017494,2]
[400708234,1767786638992,-1001.3396,0.00017507,2]
[400708236,1767786639007,-278.0,0.00017593,2]
[400708238,1767786639016,-1331.37,0.00017594,2]
[400708240,1767786639026,-165.31618738,0.00017594,2]
[400708242,1767786639035,-500.93985952,0.00017594,2]
[400708244,1767786639045,-500.0,0.00017594,2]
[400708246,1767786639055,-169.74559645,0.00017594,2]
[400708248,1767786639065,-175.21486475,0.00017594,2]
[400708250,1767786639074,-500.0,0.00017594,2]
[400708252,1767786639085,-500.0,0.00017594,2]
[400708254,1767786639096,-500.0,0.00017594,2]
[400708256,1767786639107,-500.0,0.00017594,2]
[400708258,1767786639118,-500.0,0.00017594,2]
[400708260,1767786639127,-500.0,0.00017594,2]
[400708262,1767786639137,-500.0,0.00017594,2]
[400708264,1767786639147,-500.0,0.00017594,2]
[400708266,1767786639156,-500.0,0.00017594,2]
[400708268,1767786639166,-500.0,0.00017594,2]
[400708270,1767786639176,-500.0,0.00017594,2]
[400708272,1767786639189,-500.0,0.00017594,2]
[400708274,1767786639199,-500.0,0.00017594,2]
[400708276,1767786639210,-500.0,0.00017594,2]
[400708278,1767786639219,-500.0,0.00017594,2]
[400708280,1767786639229,-311.64161933,0.00017594,2]
[400708282,1767786639239,-500.0,0.00017594,2]
[400708284,1767786639248,-500.0,0.00017594,2]
[400708286,1767786639260,-500.0,0.00017594,2]
[400708288,1767786639270,-367.99147805,0.00017594,2]
[400708290,1767786639280,-507.59595538,0.00017594,2]
[400708292,1767786639290,-500.0,0.00017594,2]
[400708294,1767786639300,-500.0,0.00017594,2]
[400708296,1767786639309,-500.0,0.00017594,2]
[400708298,1767786639319,-500.0,0.00017594,2]
[400708300,1767786639329,-500.0,0.00017594,2]
[400708302,1767786639339,-500.0,0.00017594,2]
[400708304,1767786639348,-500.0,0.00017594,2]
[400708306,1767786639358,-500.0,0.00017597,2]
[400708308,1767786639368,-200.0,0.00017597,2]
[400708310,1767786639377,-500.0,0.00017597,2]
[400708312,1767786639387,-500.0,0.00017597,2]
[400708314,1767786639396,-500.0,0.00017597,2]
[400708316,1767786639405,-500.0,0.00017597,2]
[400708318,1767786639415,-500.0,0.00017597,2]
[400708320,1767786639424,-500.0,0.00017597,2]
[400708322,1767786639434,-500.0,0.00017597,2]
[400708324,1767786639445,-500.0,0.00017597,2]
[400708326,1767786639454,-500.0,0.00017597,2]
[400708328,1767786639463,-500.0,0.00017597,2]
[400708330,1767786639473,-500.0,0.00017597,2]
[400708332,1767786639482,-500.0,0.00017597,2]
[400708334,1767786639491,-151.0,0.00017597,2]
[400708336,1767786639500,-151.0,0.00017597,2]
[400708338,1767786639510,-500.0,0.00017597,2]
[400708340,1767786639520,-151.0,0.00017597,2]
[400708342,1767786639529,-500.0,0.00017597,2]
[400708344,1767786639538,-151.0,0.00017597,2]
[400708346,1767786639547,-500.0,0.00017597,2]
[400708348,1767786639556,-151.0,0.00017597,2]
[400708350,1767786639565,-500.0,0.00017597,2]
[400708352,1767786639575,-151.0,0.00017597,2]
[400708354,1767786639584,-151.0,0.00017597,2]
[400708356,1767786639593,-226.0686019,0.00017597,2]
[400708358,1767786639603,-1244.21357412,0.00017605,5]
[400708360,1767786639613,-67024.21258101,0.00017607,2]
[400708362,1767786639624,-1000.0,0.00017644,2]
[400708364,1767786639633,-500.0,0.00017727,2]
[400708366,1767786639642,-332.94,0.00017759,2]
[400708368,1767786639651,-166.66,0.00017803,2]
[400708370,1767786639661,-14733.84169936,0.00017841,2]
[400708372,1767786639671,-200.0,0.00017856,2]
[400708374,1767786639680,-1331.37,0.00017868,2]
[400708376,1767786639690,-168.0,0.00017939,2]
[400708378,1767786639699,-5009.5163846,0.00017991,2]
[400708380,1767786639709,-205.0,0.00018,2]
[400708382,1767786639718,-179.73,0.00018032,2]
[400708384,1767786639727,-172.37166358,0.00018045,2]
[400708386,1767786639737,-193.0,0.00018092,2]
[400708388,1767786639746,-600.0,0.00018092,2]
[400708390,1767786639755,-300.0,0.00018092,2]
[400708392,1767786639764,-250.0,0.00018092,2]
[400708394,1767786639773,-195.0,0.00018092,2]
[400708396,1767786639783,-2268.92737333,0.00018092,2]
[400708398,1767786639791,-227.59193555,0.00018092,2]
[400708400,1767786639801,-754.00623712,0.00018102,2]
[400708402,1767786639810,-168.0,0.00018104,2]
[400708404,1767786639818,-1331.37,0.00018142,2]
[400708406,1767786639827,-1015.65451742,0.00018142,2]
[400708407,1767786639837,-500.0,0.00018142,2]
[400708409,1767786639846,-942.83023798,0.00018142,2]
[400708412,1767786639856,-1000.0,0.00018142,2]
[400708413,1767786639865,-556.0741427,0.00018142,2]
[400708415,1767786639874,-1000.0,0.00018142,2]
[400708417,1767786639883,-1000.0,0.00018142,2]
[400708419,1767786639893,-1000.0,0.00018142,2]
[400708422,1767786639903,-1000.0,0.00018142,2]
[400708423,1767786639912,-500.0,0.00018142,2]
[400708425,1767786639921,-1000.0,0.00018142,2]
[400708427,1767786639930,-646.42152045,0.00018142,2]
[400708429,1767786639940,-1000.0,0.00018142,2]
[400708431,1767786639950,-500.0,0.00018142,2]
[400708433,1767786639960,-1000.0,0.00018142,2]
[400708435,1767786639969,-500.73448024,0.00018142,2]
[400708437,1767786639979,-1000.0,0.00018142,2]
[400708439,1767786639988,-1000.0,0.00018142,2]
[400708441,1767786639998,-500.0,0.00018145,2]
[400708442,1767786640008,-500.0,0.00018229,2]
[400708444,1767786640018,-500.0,0.00018229,2]
[400708447,1767786640028,-1000.0,0.0001826,2]
[400708449,1767786640038,-1908.0,0.00018277,2]
[400708451,1767786640048,-168.0,0.00018311,2]
[400708453,1767786640058,-168.0,0.00018317,2]
[400708455,1767786640067,-300.0,0.00018352,2]
[400708457,1767786640077,-2500.0,0.00018352,2]
[400708459,1767786640087,-153.68743037,0.00018352,2]
[400708461,1767786640097,-600.0,0.00018352,2]
[400708463,1767786640107,-152.10889041,0.00018352,2]
[400708465,1767786640117,-300.0,0.00018352,2]
[400708467,1767786640127,-195.0,0.00018352,2]
[400708469,1767786640138,-166.66,0.00018372,2]
[400708471,1767786640148,-1331.37,0.00018416,2]
[400708473,1767786640158,-1908.0,0.00018458,2]
[400708475,1767786640168,-168.0,0.00018519,2]
[400708477,1767786640179,-150.0,0.00018559,2]
[400708479,1767786640191,-355.14,0.00018569,2]
[400708481,1767786640201,-1908.0,0.00018653,2]
[400708483,1767786640210,-420.0,0.00018668,2]
[400708485,1767786640221,-1908.0,0.00018678,2]
[400708487,1767786640231,-1331.37,0.0001869,2]
[400708489,1767786640240,-1000.0,0.0001869,2]
[400708491,1767786640253,-1537.00577444,0.0001869,2]
[400708493,1767786640263,-1500.0,0.0001869,2]
[400708495,1767786640272,-628.37348131,0.0001869,2]
[400708497,1767786640281,-500.77724877,0.0001869,2]
[400708499,1767786640291,-509.96734995,0.0001869,2]
[400708501,1767786640300,-1500.0,0.0001869,2]
[400708503,1767786640309,-1524.05521125,0.0001869,2]
[400708505,1767786640318,-1500.0,0.0001869,2]
[400708507,1767786640329,-1500.0,0.0001869,2]
[400708509,1767786640338,-500.0,0.00018693,2]
[400708511,1767786640348,-332.94,0.00018694,2]
[400708513,1767786640358,-168.0,0.00018711,2]
[400708515,1767786640367,-1908.0,0.00018713,2]
[400708517,1767786640377,-1908.0,0.00018715,2]
[400708519,1767786640386,-168.0,0.00018731,2]
[400708521,1767786640395,-250.0,0.00018732,2]
[400708523,1767786640405,-195.0,0.00018732,2]
[400708525,1767786640414,-600.0,0.00018732,2]
[400708527,1767786640425,-250.0,0.00018732,2]
[400708529,1767786640435,-300.0,0.00018732,2]
[400708531,1767786640444,-5000.0,0.00018732,2]
[400708533,1767786640454,-1680.0,0.00018761,2]
[400708535,1767786640463,-284.0,0.00018842,2]
[400708537,1767786640473,-1000.0,0.00018875,2]
[400708539,1767786640482,-1908.0,0.00018935,2]
[400708541,1767786640491,-166.66,0.0001894,2]
[400708543,1767786640501,-1331.37,0.00018964,2]
[400708545,1767786640510,-168.0,0.00018986,2]
[400708547,1767786640519,-300.0,0.00019,2]
[400708549,1767786640528,-517.11499075,0.00019035,2]
[400708551,1767786640538,-168.0,0.00019081,2]
[400708553,1767786640547,-16961.71629951,0.00019102,2]
[400708555,1767786640556,-160.8482185,0.00019139,2]
[400708557,1767786640565,-167.39628109,0.00019141,2]
[400708559,1767786640575,-1908.0,0.00019154,2]
[400708561,1767786640584,-250.0,0.00019202,2]
[400708563,1767786640594,-250.0,0.00019202,2]
[400708565,1767786640604,-250.0,0.00019202,2]
[400708567,1767786640613,-250.0,0.00019202,2]
[400708569,1767786640623,-500.0,0.00019202,2]
[400708571,1767786640633,-250.0,0.00019202,2]
[400708573,1767786640643,-500.0,0.00019202,2]
[400708575,1767786640652,-250.0,0.00019202,2]
[400708577,1767786640663,-500.0,0.00019202,2]
[400708579,1767786640672,-250.0,0.00019202,2]
[400708581,1767786640682,-250.0,0.00019202,2]
[400708583,1767786640691,-250.0,0.00019202,2]
[400708585,1767786640701,-500.0,0.00019202,2]
[400708586,1767786640710,-250.0,0.00019202,2]
[400708589,1767786640720,-2000.0,0.00019202,2]
[400708591,1767786640729,-743.29710594,0.00019202,2]
[400708593,1767786640738,-500.0,0.00019202,2]
[400708595,1767786640747,-2000.0,0.00019202,2]
[400708597,1767786640756,-500.0,0.00019202,2]
[400708599,1767786640766,-250.0,0.00019202,2]
[400708600,1767786640775,-2000.0,0.00019202,2]
[400708603,1767786640785,-250.0,0.00019202,2]
[400708605,1767786640794,-500.0,0.00019202,2]
[400708607,1767786640803,-2000.0,0.00019202,2]
[400708609,1767786640813,-500.0,0.00019202,2]
[400708610,1767786640822,-250.0,0.00019202,2]
[400708613,1767786640832,-2000.0,0.00019202,2]
[400708614,1767786640843,-500.0,0.00019202,2]
[400708616,1767786640851,-250.0,0.00019202,2]
[400708618,1767786640861,-2000.0,0.00019202,2]
[400708620,1767786640870,-250.0,0.00019202,2]
[400708622,1767786640879,-500.0,0.00019202,2]
[400708624,1767786640889,-2000.0,0.00019202,2]
[400708626,1767786640899,-250.0,0.00019202,2]
[400708628,1767786640908,-500.0,0.00019202,2]
[400708630,1767786640918,-2000.0,0.00019202,2]
[400708632,1767786640927,-250.0,0.00019202,2]
[400708634,1767786640936,-2000.0,0.00019202,2]
[400708636,1767786640946,-250.0,0.00019202,2]
[400708638,1767786640955,-2000.0,0.00019202,2]
[400708640,1767786640966,-1633.50600033,0.00019202,2]
[400708642,1767786640976,-574.12855637,0.00019202,2]
[400708644,1767786640987,-500.0,0.00019202,2]
[400708646,1767786640996,-500.0,0.00019202,2]
[400708647,1767786641006,-500.0,0.00019202,2]
[400708648,1767786641016,-500.0,0.00019202,2]
[400708649,1767786641026,-500.0,0.00019202,2]
[400708650,1767786641035,-500.0,0.00019202,2]
[400708651,1767786641045,-500.0,0.00019202,2]
[400708652,1767786641054,-500.0,0.00019202,2]
[400708653,1767786641063,-200.0,0.00019202,2]
[400708654,1767786641072,-500.0,0.00019202,2]
[400708655,1767786641081,-207.4,0.00019202,2]
[400708656,1767786641090,-500.0,0.00019202,2]
[400708657,1767786641099,-215.0738,0.00019202,2]
[400708658,1767786641109,-500.0,0.00019202,2]
[400708659,1767786641118,-223.0315306,0.00019202,2]
[400708660,1767786641126,-231.28369723,0.00019202,2]
[400708661,1767786641136,-239.84119403,0.00019202,2]
[400708662,1767786641146,-248.71531821,0.00019202,2]
[400708663,1767786641155,-257.91778498,0.00019202,2]
[400708664,1767786641164,-267.46074303,0.00019202,2]
[400708665,1767786641173,-277.35679052,0.00019202,2]
[400708666,1767786641185,-168.0,0.00019205,2]
[400708667,1767786641195,-2000.0,0.00019238,2]
[400708669,1767786641204,-676.00349903,0.00019238,2]
[400708671,1767786641214,-1511.91087313,0.00019238,2]
[400708673,1767786641225,-2000.0,0.00019238,2]
[400708675,1767786641234,-1331.37,0.00019238,2]
[400708677,1767786641243,-500.0,0.00019241,2]
[400708679,1767786641254,-168.0,0.00019256,2]
[400708682,1767786641264,-168.0,0.00019278,2]
[400708684,1767786641274,-531.4,0.00019308,2]
[400708686,1767786641283,-531.52006841,0.00019338,2]
[400708688,1767786641293,-99541.5,0.00019339,2]
[400708690,1767786641301,-79306.52,0.00019339,2]
[400708692,1767786641311,-3687.07,0.00019339,2]
[400708735,1767786641689,-9999.99,0.00019339,2]
[400708741,1767786641736,-1197.25,0.00019339,2]
[400708743,1767786641746,-2095.06,0.00019339,2]
[400708745,1767786641756,-9999.99,0.00019339,2]
[400708747,1767786641765,-529.93,0.00019339,5]
[400708749,1767786641774,-1178.51,0.00019339,2]
[400708750,1767786641784,-299.99,0.00019339,7]
[400708753,1767786641793,-3174.75,0.00019339,2]
[400708755,1767786641802,-499.99,0.00019339,2]
[400708756,1767786641811,-1465.39,0.00019339,2]
[400708759,1767786641821,-9999.99,0.00019339,2]
[400708760,1767786641830,-20121.92,0.00019339,2]
[400708762,1767786641840,-150.99,0.00019339,2]
[400708765,1767786641849,-13963.16,0.00019339,2]
[400708766,1767786641858,-999.99,0.00019339,2]
[400708769,1767786641868,-309.76,0.00019339,2]
[400708771,1767786641878,-4999.99,0.00019339,2]
[400708773,1767786641887,-9999.99,0.00019339,2]
[400708775,1767786641896,-150.99,0.00019339,2]
[400708777,1767786641905,-7097.53,0.00019339,2]
[400708779,1767786641918,-9999.99,0.00019339,2]
[400708781,1767786641928,-9999.99,0.00019339,2]
[400708783,1767786641938,-168.0,0.00019342,2]
[400708785,1767786641947,-1908.0,0.00019439,2]
[400708787,1767786641956,-168.0,0.0001945,2]
[400708789,1767786641966,-168.0,0.0001947,2]
[400708791,1767786641975,-166.66,0.00019509,2]
[400708793,1767786641984,-1331.37,0.00019512,2]
[400708795,1767786641994,-168.0,0.00019512,2]
[400708797,1767786642003,-332.94,0.00019629,2]
[400708799,1767786642013,-595.37131296,0.0001975,2]
[400708801,1767786642022,-2500.0,0.00019786,2]
[400708803,1767786642032,-1500.0,0.00019786,2]
[400708805,1767786642041,-1331.37,0.00019786,2]
[400708807,1767786642050,-504.00666552,0.00019789,2]
[400708809,1767786642059,-355.14,0.00019939,2]
[400708811,1767786642068,-32697.4306409,0.00019942,2]
[400708813,1767786642078,-292.06380785,0.00019961,2]
[400708815,1767786642088,-3103.115,0.0002001,2]
[400708817,1767786642097,-163.373,0.0002001,2]
[400708819,1767786642106,-1331.37,0.0002006,2]
[400708821,1767786642115,-166.66,0.00020078,2]
[400708823,1767786642125,-239.30650294,0.00020144,2]
[400708825,1767786642134,-617.40005154,0.00020298,2]
[400708826,1767786642144,-2000.0,0.000203,2]
[400708828,1767786642153,-3000.0,0.00020334,2]
[400708831,1767786642163,-1331.37,0.00020334,2]
[400708833,1767786642172,-881.0,0.00020548,2]
[400708835,1767786642185,-332.94,0.00020564,2]
[400708837,1767786642195,-287.61899177,0.00020571,2]
[400708839,1767786642205,-2351.0,0.00020591,2]
[400708841,1767786642215,-1331.39656441,0.00020608,2]
[400708843,1767786642224,-798.67,0.000207,7]
[400708845,1767786642235,-7295.7829353,0.00020721,2]
[400708847,1767786642244,-181.66395843,0.00020727,2]
[400708849,1767786642255,-175.60849315,0.00020727,2]
[400708851,1767786642264,-640.24385345,0.00020846,2]
[400708853,1767786642274,-3500.0,0.00020882,2]
[400708855,1767786642283,-350.0,0.00021,2]
[400708857,1767786642292,-576.07852141,0.00021394,2]
[400708859,1767786642302,-4000.0,0.0002143,2]
[400708861,1767786642312,-531.4,0.00021454,2]
[400708863,1767786642321,-332.94,0.00021498,2]
[400708865,1767786642331,-16961.71629951,0.0002153,2]
[400708867,1767786642341,-12813.93978635,0.000218,2]
[400708869,1767786642350,-395.70254632,0.00021818,2]
[400708871,1767786642359,-151.55,0.0002189,2]
[400708873,1767786642369,-495.32671846,0.0002189,2]
[400708875,1767786642378,-151.0,0.00021897,2]
[400708877,1767786642387,-5481.0,0.000219,2]
[400708879,1767786642397,-273.1107,0.000219,2]
[400708881,1767786642406,-500.0,0.00021918,2]
[400708883,1767786642415,-500.0,0.00021918,2]
[400708885,1767786642426,-500.0,0.00021918,2]
[400708887,1767786642435,-500.0,0.00021918,2]
[400708889,1767786642444,-500.0,0.00021918,2]
[400708891,1767786642454,-500.0,0.00021918,2]
[400708893,1767786642464,-500.0,0.00021918,2]
[400708895,1767786642474,-500.0,0.00021918,2]
[400708897,1767786642483,-500.0,0.00021918,2]
[400708899,1767786642493,-500.0,0.00021918,2]
[400708901,1767786642502,-500.0,0.00021918,2]
[400708904,1767786642511,-500.0,0.00021918,2]
[400708906,1767786642520,-621.11953586,0.00021918,2]
[400708908,1767786642530,-500.0,0.00021918,2]
[400708910,1767786642539,-298.26089446,0.0002194,2]
[400708912,1767786642548,-2441.3835048,0.00021978,2]
[400708914,1767786642557,-1032.51,0.00022,7]
[400708916,1767786642567,-517.11499075,0.00022239,2]
[400708918,1767786642577,-163.91088797,0.00022342,2]
[400708920,1767786642587,-332.94,0.00022433,2]
[400708922,1767786642596,-250.0,0.00022501,2]
[400708924,1767786642607,-2820.0,0.00022599,2]